fUST/lending_fUST_20240120
["ID","MTS","AMOUNT","RATE_DAILY","PERIOD"]
[312208976,1705686641533,-5214.37,0.00027945,2]
[312208978,1705686641543,-500.0,0.00027945,2]
[312208980,1705686641553,-1289.34,0.00027945,2]
[312208982,1705686641563,-500.0,0.00027945,2]
[312208985,1705686641572,-1373.52,0.00027945,2]
[312208987,1705686641582,-1661.59,0.00027945,2]
[312208989,1705686641592,-500.0,0.00027945,2]
[312208991,1705686641602,-3246.11,0.00027945,2]
[312208993,1705686641612,-500.0,0.00027945,2]
[312208995,1705686641621,-500.0,0.00027945,2]
[312208997,1705686641631,-500.0,0.00027945,2]
[312209012,1705686641757,-500.0,0.00027945,2]
[312209014,1705686641767,-500.0,0.00027945,2]
[312209016,1705686641775,-500.0,0.00027945,2]
[312209018,1705686641784,-500.0,0.00027945,2]
[312209020,1705686641793,-560.68,0.00027945,2]
[312209022,1705686641802,-500.0,0.00027945,2]
[312209024,1705686641810,-500.0,0.00027945,2]
[312209026,1705686641819,-500.0,0.00027945,2]
[312209028,1705686641830,-500.0,0.00027945,2]
[312209030,1705686641839,-500.0,0.00027945,2]
[312209032,1705686641848,-500.0,0.00027945,2]
[312209034,1705686641857,-4175.26,0.00027945,2]
[312209036,1705686641866,-290.08228321,0.00028,2]
[312209038,1705686641875,-500.0,0.00028217,2]
[312209040,1705686641885,-500.0,0.00028218,2]
[312209042,1705686641895,-500.44467489,0.00028218,2]
[312209044,1705686641903,-500.0,0.00028218,2]
[312209046,1705686641912,-646.02292577,0.00028218,2]
[312209047,1705686641922,-500.0,0.00028218,2]
[312209049,1705686641932,-500.0,0.00028218,2]
[312209051,1705686641941,-500.0,0.00028218,2]
[312209053,1705686641949,-488.58216454,0.00028218,2]
[312209055,1705686641958,-500.0,0.00028218,2]
[312209057,1705686641968,-500.0,0.00028218,2]
[312209059,1705686641977,-500.0,0.00028218,2]
[312209061,1705686641985,-397.97055966,0.00028218,2]
[312209063,1705686641994,-500.0,0.00028218,2]
[312209065,1705686642005,-500.0,0.00028218,2]
[312209068,1705686642014,-500.0,0.00028218,2]
[312209070,1705686642022,-500.0,0.00028218,2]
[312209072,1705686642031,-500.0,0.00028218,2]
[312209074,1705686642040,-500.0,0.00028218,2]
[312209076,1705686642049,-500.0,0.00028218,2]
[312209078,1705686642058,-500.0,0.00028218,2]
[312209079,1705686642067,-500.0,0.00028218,2]
[312209081,1705686642076,-500.0,0.00028218,2]
[312209083,1705686642084,-500.0,0.00028218,2]
[312209085,1705686642093,-500.0,0.00028218,2]
[312209087,1705686642102,-271.9202463,0.00028218,2]
[312209089,1705686642111,-500.0,0.00028218,2]
[312209091,1705686642119,-500.0,0.00028218,2]
[312209093,1705686642128,-500.0,0.00028218,2]
[312209095,1705686642137,-633.43700561,0.00028218,2]
[312209097,1705686642145,-500.0,0.00028218,2]
[312209099,1705686642154,-500.0,0.00028218,2]
[312209101,1705686642163,-500.0,0.00028218,2]
[312209103,1705686642171,-500.0,0.00028218,2]
[312209105,1705686642180,-500.0,0.00028218,2]
[312209108,1705686642189,-500.0,0.00028218,2]
[312209110,1705686642198,-184.91,0.00028219,2]
[312209112,1705686642207,-630.47969418,0.00028219,2]
[312209114,1705686642216,-500.0,0.00028219,2]
[312209116,1705686642226,-500.0,0.00028219,2]
[312209118,1705686642235,-500.0,0.00028219,2]
[312209120,1705686642244,-500.0,0.00028219,2]
[312209122,1705686642254,-831.14,0.00028219,2]
[312209124,1705686642263,-500.0,0.00028219,2]
[312209126,1705686642271,-293.819875,0.00028219,2]
[312209128,1705686642280,-5214.37,0.00028219,2]
[312209130,1705686642289,-500.0,0.00028219,2]
[312209132,1705686642298,-1289.34,0.00028219,2]
[312209134,1705686642307,-500.0,0.00028219,2]
[312209136,1705686642316,-1373.52,0.00028219,2]
[312209138,1705686642325,-1661.59,0.00028219,2]
[312209140,1705686642334,-500.0,0.00028219,2]
[312209142,1705686642343,-3246.11,0.00028219,2]
[312209144,1705686642352,-500.0,0.00028219,2]
[312209146,1705686642361,-500.0,0.00028219,2]
[312209148,1705686642370,-500.0,0.00028219,2]
[312209150,1705686642379,-500.0,0.00028219,2]
[312209152,1705686642388,-500.0,0.00028219,2]
[312209154,1705686642397,-500.0,0.00028219,2]
[312209156,1705686642406,-500.0,0.00028219,2]
[312209158,1705686642415,-560.68,0.00028219,2]
[312209160,1705686642424,-500.0,0.00028219,2]
[312209162,1705686642433,-500.0,0.00028219,2]
[312209164,1705686642442,-500.0,0.00028219,2]
[312209166,1705686642451,-500.0,0.00028219,2]
[312209168,1705686642460,-4175.26,0.00028219,2]
[312209170,1705686642470,-500.0,0.00028491,2]
[312209172,1705686642479,-200.73485866,0.00028493,3]
[312209174,1705686642487,-500.0,0.00028493,2]
[312209176,1705686642498,-500.0,0.00028493,2]
[312209178,1705686642508,-500.0,0.00028493,2]
[312209180,1705686642517,-500.0,0.00028493,2]
[312209182,1705686642527,-831.14,0.00028493,2]
[312209184,1705686642536,-500.0,0.00028493,2]
[312209186,1705686642545,-5214.37,0.00028493,2]
[312209188,1705686642555,-500.0,0.00028493,2]
[312209190,1705686642563,-1289.34,0.00028493,2]
[312209192,1705686642573,-500.0,0.00028493,2]
[312209194,1705686642582,-1373.52,0.00028493,2]
[312209196,1705686642591,-1661.59,0.00028493,2]
[312209198,1705686642600,-500.0,0.00028493,2]
[312209200,1705686642609,-3246.11,0.00028493,2]
[312209202,1705686642619,-500.0,0.00028493,2]
[312209204,1705686642628,-500.0,0.00028493,2]
[312209206,1705686642637,-609.27548381,0.00028493,2]
[312209208,1705686642646,-500.0,0.00028493,2]
[312209210,1705686642655,-500.0,0.00028493,2]
[312209212,1705686642664,-500.0,0.00028493,2]
[312209214,1705686642674,-500.0,0.00028493,2]
[312209216,1705686642683,-560.68,0.00028493,2]
[312209218,1705686642693,-500.0,0.00028493,2]
[312209220,1705686642702,-500.0,0.00028493,2]
[312209222,1705686642711,-500.0,0.00028493,2]
[312209224,1705686642720,-500.0,0.00028493,2]
[312209226,1705686642729,-4175.26,0.00028493,2]
[312209228,1705686642738,-3434.79083641,0.00028646,4]
[312209229,1705686642749,-11479.78911824,0.00028646,4]
[312209232,1705686642758,-32204.93579759,0.00028646,4]
[312209234,1705686642767,-3372.411679,0.00028646,4]
[312209235,1705686642776,-1232.05,0.00028667,2]
[312209237,1705686642785,-3000.0,0.000287,7]
[312209239,1705686642794,-200.0,0.00028765,15]
[312209242,1705686642804,-500.0,0.00028765,2]
[312209243,1705686642814,-500.0,0.00028767,2]
[312209246,1705686642823,-500.0,0.00028767,2]
[312209248,1705686642833,-325.66290991,0.00028767,2]
[312209250,1705686642842,-500.0,0.00028767,2]
[312209251,1705686642851,-831.14,0.00028767,2]
[312209254,1705686642860,-500.0,0.00028767,2]
[312209255,1705686642874,-5214.37,0.00028767,2]
[312209257,1705686642883,-500.0,0.00028767,2]
[312209259,1705686642892,-1289.34,0.00028767,2]
[312209261,1705686642901,-500.0,0.00028767,2]
[312209264,1705686642911,-1373.52,0.00028767,2]
[312209265,1705686642921,-1661.59,0.00028767,2]
[312209267,1705686642930,-500.0,0.00028767,2]
[312209269,1705686642939,-3246.11,0.00028767,2]
[312209271,1705686642948,-500.0,0.00028767,2]
[312209273,1705686642957,-500.0,0.00028767,2]
[312209275,1705686642968,-262.10378573,0.00028767,2]
[312209277,1705686642977,-500.0,0.00028767,2]
[312209279,1705686642986,-500.0,0.00028767,2]
[312209281,1705686642995,-500.0,0.00028767,2]
[312209283,1705686643006,-560.68,0.00028767,2]
[312209285,1705686643015,-500.0,0.00028767,2]
[312209287,1705686643024,-500.0,0.00028767,2]
[312209290,1705686643033,-150.66025426,0.00028767,2]
[312209293,1705686643042,-500.0,0.00028767,2]
[312209296,1705686643052,-4175.26,0.00028767,2]
[312209298,1705686643061,-154.76784823,0.00029,2]
[312209302,1705686643070,-1879.41245692,0.00029,2]
[312209305,1705686643079,-500.0,0.00029039,2]
[312209309,1705686643089,-500.0,0.00029041,2]
[312209313,1705686643100,-500.0,0.00029041,2]
[312209317,1705686643109,-500.0,0.00029041,2]
[312209320,1705686643117,-831.14,0.00029041,2]
[312209324,1705686643125,-500.0,0.00029041,2]
[312209328,1705686643134,-5214.37,0.00029041,2]
[312209332,1705686643143,-426.97768802,0.00029041,2]
[312209335,1705686643151,-1289.34,0.00029041,2]
[312209340,1705686643160,-500.0,0.00029041,2]
[312209344,1705686643170,-1373.52,0.00029041,2]
[312209349,1705686643178,-1661.59,0.00029041,2]
[312209353,1705686643187,-500.0,0.00029041,2]
[312209359,1705686643196,-3246.11,0.00029041,2]
[312209365,1705686643205,-500.0,0.00029041,2]
[312209368,1705686643214,-500.0,0.00029041,2]
[312209372,1705686643223,-500.0,0.00029041,2]
[312209377,1705686643232,-500.0,0.00029041,2]
[312209381,1705686643241,-500.0,0.00029041,2]
[312209384,1705686643251,-560.68,0.00029041,2]
[312209386,1705686643260,-500.0,0.00029041,2]
[312209389,1705686643269,-500.0,0.00029041,2]
[312209392,1705686643277,-500.0,0.00029041,2]
[312209394,1705686643286,-4175.26,0.00029041,2]
[312209397,1705686643295,-500.0,0.00029313,2]
[312209400,1705686643304,-344.99473571,0.00029315,2]
[312209402,1705686643312,-500.0,0.00029315,2]
[312209404,1705686643321,-500.0,0.00029315,2]
[312209407,1705686643331,-831.14,0.00029315,2]
[312209410,1705686643340,-500.0,0.00029315,2]
[312209413,1705686643349,-5214.37,0.00029315,2]
[312209417,1705686643358,-1289.34,0.00029315,2]
[312209420,1705686643368,-500.0,0.00029315,2]
[312209422,1705686643376,-1373.52,0.00029315,2]
[312209424,1705686643385,-1661.59,0.00029315,2]
[312209427,1705686643395,-500.0,0.00029315,2]
[312209430,1705686643404,-3246.11,0.00029315,2]
[312209432,1705686643413,-500.0,0.00029315,2]
[312209434,1705686643422,-500.0,0.00029315,2]
[312209436,1705686643432,-500.0,0.00029315,2]
[312209438,1705686643441,-500.0,0.00029315,2]
[312209440,1705686643451,-500.0,0.00029315,2]
[312209443,1705686643459,-560.68,0.00029315,2]
[312209446,1705686643469,-500.0,0.00029315,2]
[312209449,1705686643477,-500.0,0.00029315,2]
[312209451,1705686643486,-500.0,0.00029315,2]
[312209456,1705686643500,-4175.26,0.00029315,2]
[312209457,1705686643510,-198.957615,0.00029315,2]
[312209461,1705686643520,-621.49125679,0.00029363,2]
[312209463,1705686643529,-821.49147953,0.000295,30]
[312209466,1705686643539,-500.0,0.00029587,2]
[312209471,1705686643549,-500.0,0.00029589,2]
[312209474,1705686643560,-500.0,0.00029589,2]
[312209476,1705686643569,-831.14,0.00029589,2]
[312209478,1705686643578,-500.0,0.00029589,2]
[312209481,1705686643588,-5214.37,0.00029589,2]
[312209484,1705686643597,-1289.34,0.00029589,2]
[312209488,1705686643608,-500.0,0.00029589,2]
[312209491,1705686643618,-1373.52,0.00029589,2]
[312209494,1705686643627,-1661.59,0.00029589,2]
[312209498,1705686643637,-500.0,0.00029589,2]
[312209500,1705686643647,-3246.11,0.00029589,2]
[312209502,1705686643656,-500.0,0.00029589,2]
[312209506,1705686643666,-500.0,0.00029589,2]
[312209508,1705686643675,-500.0,0.00029589,2]
[312209511,1705686643684,-500.0,0.00029589,2]
[312209513,1705686643694,-500.0,0.00029589,2]
[312209514,1705686643703,-560.68,0.00029589,2]
[312209517,1705686643714,-500.0,0.00029589,2]
[312209518,1705686643724,-500.0,0.00029589,2]
[312209520,1705686643733,-500.0,0.00029589,2]
[312209523,1705686643743,-4175.26,0.00029589,2]
[312209524,1705686643755,-14056.67990484,0.00029763,2]
[312209527,1705686643765,-500.0,0.00029861,2]
[312209529,1705686643774,-500.0,0.00029863,2]
[312209530,1705686643783,-500.0,0.00029863,2]
[312209532,1705686643793,-831.14,0.00029863,2]
[312209534,1705686643802,-500.0,0.00029863,2]
[312209537,1705686643811,-5214.37,0.00029863,2]
[312209538,1705686643821,-1289.34,0.00029863,2]
[312209540,1705686643830,-500.0,0.00029863,2]
[312209542,1705686643839,-1373.52,0.00029863,2]
[312209544,1705686643848,-1661.59,0.00029863,2]
[312209546,1705686643857,-506.53379257,0.00029863,2]
[312209548,1705686643867,-3246.11,0.00029863,2]
[312209550,1705686643876,-500.0,0.00029863,2]
[312209553,1705686643888,-500.0,0.00029863,2]
[312209555,1705686643897,-500.0,0.00029863,2]
[312209557,1705686643906,-500.0,0.00029863,2]
[312209559,1705686643915,-500.0,0.00029863,2]
[312209561,1705686643924,-560.68,0.00029863,2]
[312209562,1705686643934,-500.0,0.00029863,2]
[312209564,1705686643943,-500.0,0.00029863,2]
[312209567,1705686643954,-500.0,0.00029863,2]
[312209569,1705686643963,-4175.26,0.00029863,2]
[312209570,1705686643972,-9114.76945328,0.00029931,4]
[312209573,1705686643982,-3000.0,0.0003,7]
[312209575,1705686643991,-150.0,0.0003,2]
[312209577,1705686644004,-5999.98,0.0003,7]
[312209579,1705686644013,-6000.0,0.0003,7]
[312209588,1705686644021,-185.0,0.0003,2]
[312209591,1705686644105,-280.92218192,0.0003,30]
[312209593,1705686644114,-681.93949513,0.0003,3]
[312209595,1705686644124,-230.43340321,0.0003,4]
[312209596,1705686644133,-1200.0,0.0003,4]
[312209597,1705686644142,-243.97478798,0.0003,4]
[312209599,1705686644151,-688.01285151,0.0003,4]
[312209600,1705686644160,-464.33375401,0.0003,2]
[312209602,1705686644169,-500.0,0.00030135,2]
[312209604,1705686644179,-500.0,0.00030136,2]
[312209606,1705686644187,-500.0,0.00030136,2]
[312209608,1705686644197,-500.0,0.00030136,2]
[312209610,1705686644206,-831.14,0.00030136,2]
[312209612,1705686644216,-500.0,0.00030136,2]
[312209614,1705686644225,-5214.37,0.00030136,2]
[312209616,1705686644234,-1289.34,0.00030136,2]
[312209618,1705686644243,-500.0,0.00030136,2]
[312209620,1705686644253,-1373.52,0.00030136,2]
[312209622,1705686644262,-1661.59,0.00030136,2]
[312209624,1705686644271,-3246.11,0.00030136,2]
[312209626,1705686644280,-500.0,0.00030136,2]
[312209628,1705686644289,-500.0,0.00030136,2]
[312209630,1705686644298,-500.0,0.00030136,2]
[312209632,1705686644308,-500.0,0.00030136,2]
[312209634,1705686644317,-500.0,0.00030136,2]
[312209636,1705686644326,-560.68,0.00030136,2]
[312209638,1705686644335,-500.0,0.00030136,2]
[312209640,1705686644344,-500.0,0.00030136,2]
[312209642,1705686644352,-500.0,0.00030136,2]
[312209644,1705686644362,-4175.26,0.00030136,2]
[312209646,1705686644371,-305.965266,0.00030137,2]
[312209648,1705686644380,-153.0,0.00030137,2]
[312209650,1705686644390,-153.0,0.00030137,2]
[312209652,1705686644399,-199.0432224,0.00030137,2]
[312209654,1705686644409,-153.0,0.00030137,2]
[312209655,1705686644418,-199.0432224,0.00030137,2]
[312209658,1705686644428,-153.0,0.00030137,2]
[312209659,1705686644437,-153.0,0.00030137,2]
[312209661,1705686644446,-199.0432224,0.00030137,2]
[312209663,1705686644455,-425.5351148,0.00030137,2]
[312209665,1705686644465,-199.0432224,0.00030137,2]
[312209667,1705686644474,-199.0432224,0.00030137,2]
[312209669,1705686644483,-153.0,0.00030137,2]
[312209671,1705686644492,-153.0,0.00030137,2]
[312209673,1705686644502,-153.0,0.00030137,2]
[312209675,1705686644511,-161.256925,0.00030137,2]
[312209677,1705686644521,-165.899904,0.00030137,2]
[312209679,1705686644530,-500.0,0.00030273,2]
[312209681,1705686644539,-500.0,0.00030409,2]
[312209683,1705686644549,-517.5725359,0.0003041,2]
[312209685,1705686644558,-533.56513679,0.0003041,2]
[312209687,1705686644567,-500.0,0.0003041,2]
[312209689,1705686644576,-831.14,0.0003041,2]
[312209691,1705686644586,-500.0,0.0003041,2]
[312209693,1705686644594,-5214.37,0.0003041,2]
[312209695,1705686644604,-1289.34,0.0003041,2]
[312209697,1705686644613,-500.0,0.0003041,2]
[312209699,1705686644622,-1373.52,0.0003041,2]
[312209701,1705686644632,-1661.59,0.0003041,2]
[312209703,1705686644641,-3246.11,0.0003041,2]
[312209705,1705686644650,-500.0,0.0003041,2]
[312209707,1705686644659,-500.0,0.0003041,2]
[312209709,1705686644668,-500.0,0.0003041,2]
[312209711,1705686644677,-500.0,0.0003041,2]
[312209713,1705686644687,-500.0,0.0003041,2]
[312209715,1705686644696,-560.68,0.0003041,2]
[312209717,1705686644705,-500.0,0.0003041,2]
[312209719,1705686644715,-500.0,0.0003041,2]
[312209721,1705686644725,-500.0,0.0003041,2]
[312209723,1705686644734,-4175.26,0.0003041,2]
[312209725,1705686644744,-500.0,0.00030547,2]
[312209727,1705686644755,-163.0,0.00030564,2]
[312209729,1705686644764,-150.0,0.00030564,2]
[312209731,1705686644774,-533.0,0.0003066,30]
[312209733,1705686644783,-150.5,0.0003066,30]
[312209735,1705686644793,-533.0,0.0003067,30]
[312209736,1705686644802,-150.5,0.0003067,30]
[312209737,1705686644811,-533.0,0.0003068,30]
[312209739,1705686644821,-157.43,0.0003068,30]
[312209741,1705686644830,-150.5,0.0003068,30]
[312209743,1705686644839,-500.0,0.00030683,2]
[312209745,1705686644848,-500.0,0.00030684,2]
[312209747,1705686644857,-831.14,0.00030684,2]
[312209749,1705686644867,-500.0,0.00030684,2]
[312209751,1705686644876,-5214.37,0.00030684,2]
[312209753,1705686644887,-256.94941864,0.00030684,2]
[312209755,1705686644897,-1289.34,0.00030684,2]
[312209757,1705686644905,-1373.52,0.00030684,2]
[312209759,1705686644916,-1661.59,0.00030684,2]
[312209761,1705686644925,-3246.11,0.00030684,2]
[312209763,1705686644934,-500.0,0.00030684,2]
[312209765,1705686644943,-500.0,0.00030684,2]
[312209767,1705686644951,-500.0,0.00030684,2]
[312209768,1705686644961,-436.22663609,0.00030684,2]
[312209770,1705686644970,-500.0,0.00030684,2]
[312209772,1705686644980,-560.68,0.00030684,2]
[312209774,1705686644989,-500.0,0.00030684,2]
[312209776,1705686645000,-500.0,0.00030684,2]
[312209778,1705686645009,-500.0,0.00030684,2]
[312209779,1705686645018,-4175.26,0.00030684,2]
[312209780,1705686645027,-500.0,0.00030821,2]
[312209781,1705686645036,-620.07456284,0.00030831,2]
[312209782,1705686645046,-500.0,0.00030957,2]
[312209783,1705686645056,-500.0,0.00030958,2]
[312209784,1705686645067,-831.14,0.00030958,2]
[312209785,1705686645078,-500.0,0.00030958,2]
[312209786,1705686645088,-5214.37,0.00030958,2]
[312209787,1705686645099,-1289.34,0.00030958,2]
[312209788,1705686645109,-1373.52,0.00030958,2]
[312209789,1705686645119,-1661.59,0.00030958,2]
[312209790,1705686645129,-3246.11,0.00030958,2]
[312209791,1705686645138,-500.0,0.00030958,2]
[312209792,1705686645147,-500.0,0.00030958,2]
[312209793,1705686645156,-318.59634199,0.00030958,2]
[312209794,1705686645164,-500.0,0.00030958,2]
[312209795,1705686645173,-560.68,0.00030958,2]
[312209796,1705686645182,-500.0,0.00030958,2]
[312209797,1705686645191,-401.77005507,0.00030958,2]
[312209798,1705686645200,-500.0,0.00030958,2]
[312209799,1705686645209,-4175.26,0.00030958,2]
[312209800,1705686645218,-238.08177011,0.00031,2]
[312209801,1705686645227,-927.045051,0.00031,3]
[312209803,1705686645237,-500.0,0.00031095,2]
[312209805,1705686645246,-165.899904,0.00031096,2]
[312209807,1705686645257,-161.256925,0.00031183,2]
[312209809,1705686645266,-500.0,0.00031231,2]
[312209811,1705686645274,-500.0,0.00031232,2]
[312209813,1705686645283,-831.14,0.00031232,2]
[312209815,1705686645292,-500.0,0.00031232,2]
[312209817,1705686645301,-5214.37,0.00031232,2]
[312209819,1705686645310,-1289.34,0.00031232,2]
[312209821,1705686645318,-1373.52,0.00031232,2]
[312209822,1705686645327,-1661.59,0.00031232,2]
[312209824,1705686645336,-3246.11,0.00031232,2]
[312209826,1705686645345,-500.0,0.00031232,2]
[312209828,1705686645365,-500.0,0.00031232,2]
[312209829,1705686645375,-500.0,0.00031232,2]
[312209830,1705686645385,-560.68,0.00031232,2]
[312209831,1705686645395,-500.0,0.00031232,2]
[312209832,1705686645405,-500.0,0.00031232,2]
[312209833,1705686645415,-4175.26,0.00031232,2]
[312209834,1705686645425,-500.0,0.00031369,2]
[312209835,1705686645434,-3000.0,0.000315,14]
[312209836,1705686645443,-500.0,0.00031505,2]
[312209837,1705686645453,-410.47740177,0.00031506,4]
[312209838,1705686645462,-154.76784823,0.00031506,2]
[312209839,1705686645472,-351.22049841,0.00031506,2]
[312209841,1705686645481,-283.06089695,0.00031506,3]
[312209843,1705686645490,-4320.19775833,0.00031506,4]
[312209845,1705686645501,-195.20473695,0.00031506,4]
[312209847,1705686645510,-154.93802479,0.00031506,4]
[312209849,1705686645519,-636.30429841,0.00031506,2]
[312209851,1705686645529,-831.14,0.00031506,2]
[312209853,1705686645541,-500.0,0.00031506,2]
[312209855,1705686645550,-5214.37,0.00031506,2]
[312209857,1705686645559,-1289.34,0.00031506,2]
[312209859,1705686645568,-1373.52,0.00031506,2]
[312209861,1705686645577,-1661.59,0.00031506,2]
[312209862,1705686645587,-3246.11,0.00031506,2]
[312209864,1705686645596,-500.0,0.00031506,2]
[312209866,1705686645606,-500.0,0.00031506,2]
[312209868,1705686645615,-500.0,0.00031506,2]
[312209870,1705686645625,-560.68,0.00031506,2]
[312209872,1705686645634,-500.0,0.00031506,2]
[312209874,1705686645644,-500.0,0.00031506,2]
[312209876,1705686645653,-4175.26,0.00031506,2]
[312209878,1705686645662,-280.0,0.00031641,15]
[312209880,1705686645672,-173.35363906,0.00031779,2]
[312209882,1705686645681,-831.14,0.0003178,2]
[312209884,1705686645690,-500.0,0.0003178,2]
[312209886,1705686645700,-5214.37,0.0003178,2]
[312209888,1705686645709,-1289.34,0.0003178,2]
[312209890,1705686645718,-1373.52,0.0003178,2]
[312209892,1705686645728,-1661.59,0.0003178,2]
[312209894,1705686645738,-3246.11,0.0003178,2]
[312209896,1705686645747,-500.0,0.0003178,2]
[312209898,1705686645759,-500.0,0.0003178,2]
[312209900,1705686645768,-500.0,0.0003178,2]
[312209902,1705686645777,-560.68,0.0003178,2]
[312209904,1705686645786,-500.0,0.0003178,2]
[312209906,1705686645796,-500.0,0.0003178,2]
[312209908,1705686645805,-4175.26,0.0003178,2]
[312209910,1705686645817,-319.08679849,0.00032,4]
[312209912,1705686645826,-154.76784823,0.00032,4]
[312209914,1705686645836,-500.0,0.00032,3]
[312209916,1705686645845,-200.0,0.00032,4]
[312209918,1705686645855,-831.14,0.00032054,2]
[312209920,1705686645864,-500.0,0.00032054,2]
[312209922,1705686645874,-5214.37,0.00032054,2]
[312209924,1705686645884,-1289.34,0.00032054,2]
[312209926,1705686645895,-1373.52,0.00032054,2]
[312209928,1705686645905,-1661.59,0.00032054,2]
[312209930,1705686645915,-3246.11,0.00032054,2]
[312209932,1705686645925,-550.58334759,0.00032054,2]
[312209934,1705686645935,-500.0,0.00032054,2]
[312209936,1705686645944,-500.0,0.00032054,2]
[312209938,1705686645953,-560.68,0.00032054,2]
[312209940,1705686645962,-258.97868591,0.00032054,2]
[312209942,1705686645972,-257.25737173,0.00032054,2]
[312209944,1705686645981,-165.899904,0.00032055,2]
[312209946,1705686645991,-161.256925,0.00032229,2]
[312209948,1705686646002,-831.14,0.00032328,2]
[312209950,1705686646011,-344.94523465,0.00032328,2]
[312209952,1705686646021,-5214.37,0.00032328,2]
[312209954,1705686646031,-1289.34,0.00032328,2]
[312209956,1705686646040,-1373.52,0.00032328,2]
[312209959,1705686646049,-1661.59,0.00032328,2]
[312209962,1705686646060,-3246.11,0.00032328,2]
[312209965,1705686646069,-500.0,0.00032328,2]
[312209968,1705686646078,-500.0,0.00032328,2]
[312209971,1705686646087,-560.68,0.00032328,2]
[312209974,1705686646097,-1273.60431467,0.00032458,2]
[312209976,1705686646106,-295.48,0.00032499,2]
[312209978,1705686646116,-295.48,0.00032499,2]
[312209980,1705686646124,-295.48,0.00032499,2]
[312209982,1705686646134,-295.48,0.00032499,2]
[312209985,1705686646143,-295.47,0.00032499,2]
[312209988,1705686646151,-769.74,0.00032499,2]
[312209990,1705686646160,-500.0,0.00032499,4]
[312209991,1705686646169,-505.29629579,0.00032499,4]
[312209994,1705686646179,-433.78102858,0.00032499,4]
[312209996,1705686646188,-353.80787688,0.00032499,4]
[312209998,1705686646197,-115924.11494888,0.000325,20]
[312210000,1705686646206,-300.0,0.000325,16]
[312210002,1705686646215,-831.14,0.00032602,2]
[312210004,1705686646225,-5214.37,0.00032602,2]
[312210016,1705686646329,-1289.34,0.00032602,2]
[312210018,1705686646338,-1373.52,0.00032602,2]
[312210020,1705686646347,-1661.59,0.00032602,2]
[312210022,1705686646356,-3246.11,0.00032602,2]
[312210024,1705686646365,-500.0,0.00032602,2]
[312210026,1705686646374,-500.0,0.00032602,2]
[312210028,1705686646384,-560.68,0.00032602,2]
[312210030,1705686646394,-831.14,0.00032876,2]
[312210031,1705686646404,-5214.37,0.00032876,2]
[312210033,1705686646413,-1289.34,0.00032876,2]
[312210034,1705686646422,-1373.52,0.00032876,2]
[312210036,1705686646431,-1661.59,0.00032876,2]
[312210038,1705686646440,-3246.11,0.00032876,2]
[312210040,1705686646449,-500.0,0.00032876,2]
[312210042,1705686646458,-500.0,0.00032876,2]
[312210044,1705686646468,-560.68,0.00032876,2]
[312210045,1705686646477,-484.51719433,0.00032876,7]
[312210047,1705686646486,-500.0,0.00032876,7]
[312210050,1705686646495,-500.0,0.00032876,7]